[Event "USA Junior-ch 2022"]
[Site "Saint Louis"]
[Date "2022.07.08"]
[Round "2.1"]
[White "Hong, Andrew"]
[Black "Daggupati, Balaji"]
[Result "1-0"]
[ECO "B45"]
[WhiteElo "2504"]
[BlackElo "2488"]
[Annotator "TA"]
[PlyCount "75"]
[EventDate "2022.07.07"]
[EventType "tourn"]
[EventCountry "USA"]
[SourceTitle "playchess.com"]
[Source "ChessBase"]
[SourceQuality "1"]
[TimeControl "40/5400+30:1800+30"]

{[%evp 22,75,21,12,5,19,11,14,8,6,15,12,11,8,10,18,18,18,20,0,12,0,12,8,26,25,22,19,50,64,66,58,168,161,162,155,261,247,240,239,259,245,255,244,487,476,781,778,777,777,777,777,985,965,959,861]} 1. e4 {[%emt 0:00:01]} c5 {[%emt 0:00:07]} 2. Nf3 {[%emt 0:00:07]} e6 {[%emt 0:00:05]} 3. d4 {[%emt 0:00:13]} cxd4 {[%emt 0:00:05]} 4. Nxd4 {[%emt 0:00:04]} Nf6 {[%emt 0:00:06]} 5. Nc3 {[%emt 0:00:04]} Nc6 {[%emt 0:00:06]} 6. Nxc6 {[%emt 0:00:30]} bxc6 {[%emt 0:00:05]} 7. e5 {[%emt 0:00:04]} Nd5 {[%emt 0:00:05]} 8. Ne4 {[%emt 0:00:09]} Qc7 {[%emt 0:00:04]} 9. f4 {[%emt 0:00:05]} Qb6 {[%emt 0:00:05]} 10. c4 {[%emt 0:00:24]} Bb4+ {[%emt 0:00:35]} 11. Ke2 {[%emt 0:00:08]} f5 {[%emt 0:00:08]} 12. exf6 {[%emt 0:00:34]} Nxf6 {[%emt 0:00:15] B45: Sicilian Four Knights.} 13. Be3 {[%emt 0:00:08]} Qd8 {[%emt 0:00:09]} 14. Nd6+ {[%emt 0:00:10]} Bxd6 {[%emt 0:00:06] The position is equal.} 15. Qxd6 {[%emt 0:00:05]} Bb7 {[%emt 0:00:35]} 16. Kd1 {[%emt 0:00:29]} c5 {[%emt 0:00:50]} 17. Qxc5 {[%emt 0:00:10]} (17. Bxc5 Ne4 18. Qe5 (18. Qd4 d6 $17) 18... Nxc5 19. Qxc5 Rc8 $15) 17... Be4 {[%emt 0:00:32] Inhibits Bd3.} 18. Qa3 {[%emt 0:00:39]} d6 {[%emt 0:02:28][%cal Bd7d6,Bd6d5,Bd5d4][%mdl 32]} 19. Bd3 {[%emt 0:00:54]} O-O {[%emt 0:00:27]} 20. Rc1 {[%emt 0:01:02]} d5 {[%emt 0:03:53] [#] Threatens to win with ...dxc4.} 21. c5 {[%emt 0:00:26] [#]} d4 $146 {[%emt 0:15:47]} ({Predecessor:} 21... Bxg2 22. Re1 Ng4 23. c6 Rc8 24. Qxa7 Be4 25. Bb6 Qf6 26. Bxe4 dxe4 27. Rc3 Qxf4 {½-½ (43) Wilkinson,C-Quilang,A ICCF email 2021}) 22. Bd2 {[%emt 0:00:25]} (22. Bxe4 $2 Nxe4 23. Qd3 {[#]} Rxf4 $3 $19 {[%mdl 512]}) 22... Qd5 {[%emt 0:09:54]} (22... Ng4 $5 23. Bxe4 Nf2+ 24. Kc2 Nxe4 $11) 23. Re1 {[%emt 0:00:30]} Qf5 {[%emt 0:04:28]} 24. Ba6 {[%emt 0:00:34][%cal Bd3a6,Ba6e2,Be2f3][%mdl 32]} Qh5+ {[%emt 0:11:50]} 25. Be2 {[%emt 0:11:12] A strong pair of Bishops.} Qd5 {[%emt 0:03:28] aiming for ...d3.} 26. Bf3 $1 {[%emt 0:15:06] Bxe4 is the strong threat.} (26. c6 $2 d3 27. Bxd3 Bxd3 $17) 26... Qf5 {[%emt 0:12:49]} (26... Rad8 $14) 27. c6 $18 {[%emt 0:16:22]} Rac8 {[%emt 0:03:50][%cal Of6g4]} 28. Bb4 {[%emt 0:15:50]} (28. Qxa7 $6 Bxf3+ 29. gxf3 Qh5 $16) 28... Rfe8 {[%emt 0:07:44]} (28... Rfd8 $16) 29. Bxe4 {[%emt 0:02:26]} ({Avoid the trap} 29. Qxa7 $2 Bxf3+ 30. gxf3 Qd3+ 31. Bd2 Qxf3+ 32. Kc2 Rxc6+ 33. Kb1 Qd3+ 34. Ka1 Qxd2 $19) 29... Nxe4 {[%emt 0:00:05]} 30. Qf3 {[%emt 0:00:22] Really sharp!} Nf6 {[%emt 0:00:18]} (30... Qb5 $2 31. Rxe4 Qxb4 32. Qb3) 31. Re5 {[%emt 0:02:40]} Qg6 {[%emt 0:00:03]} 32. Bd2 {[%emt 0:02:30][%cal Bb4d2,Bd2e3,Be3f4][%mdl 32]} Nd5 $2 {[%emt 0:06:00]} (32... h6 {might work better.} 33. h3 Qf7) 33. f5 {[%emt 0:03:25] White is clearly winning.} Qf6 {[%emt 0:01:08]} (33... Qf7 $142 34. fxe6 Qxf3+ 35. gxf3 Nc7) 34. Rxe6 {[%emt 0:00:55]} ({Less strong is} 34. Qe4 Nc7 35. Rcc5 (35. Qxd4 Red8 $16) 35... exf5 36. Qxf5 (36. Qxd4 Red8 $16) 36... Qxf5 37. Rxf5 a6 $18) 34... Ne3+ {[%emt 0:00:50]} 35. Bxe3 {[%emt 0:00:12]} Rxe6 {[%emt 0:00:04]} 36. fxe6 {[%emt 0:00:52] Strongly threatening Qxf6.} Qxe6 {[%emt 0:00:56]} 37. Bf4 {[%emt 0:01:47]} Qxa2 {[%emt 0:00:10]} 38. c7 {[%emt 0:00:52] Weighted Error Value: White=0.01 (flawless) /Black=0.26 (precise)} 1-0

[Event "USA Junior-ch 2022"]
[Site "Saint Louis"]
[Date "2022.07.09"]
[Round "2.2"]
[White "Espinosa, Pedro"]
[Black "Wang, Justin"]
[Result "1/2-1/2"]
[ECO "A58"]
[WhiteElo "2130"]
[BlackElo "2469"]
[Annotator "RC"]
[PlyCount "146"]
[EventDate "2022.07.07"]
[EventType "tourn"]
[EventCountry "USA"]
[SourceTitle "playchess.com"]
[Source "ChessBase"]
[SourceQuality "1"]
[TimeControl "40/5400+30:1800+30"]

1. d4 {[%emt 0:00:02]} Nf6 {[%emt 0:00:19]} 2. c4 {[%emt 0:00:06]} c5 {[%emt 0:02:14]} 3. d5 {[%emt 0:01:18]} b5 {[%emt 0:01:35]} 4. cxb5 {[%emt 0:01:40]} a6 {[%emt 0:00:24]} 5. bxa6 {[%emt 0:01:29]} g6 {[%emt 0:00:42]} 6. Nc3 {[%emt 0:01:35]} Bg7 {[%emt 0:00:26]} 7. e4 {[%emt 0:02:25]} O-O {[%emt 0:00:49]} 8. Nf3 {[%emt 0:03:22]} Qa5 {[%emt 0:01:35]} 9. Bd2 {[%emt 0:03:56]} Bxa6 {[%emt 0:00:50]} 10. Bxa6 {[%emt 0:02:58]} Qxa6 {[%emt 0:06:00]} 11. Qe2 {[%emt 0:02:22]} d6 {[%emt 0:00:05]} 12. a4 {[%emt 0:08:33]} Nfd7 {[%emt 0:02:43]} 13. Ra2 {[%emt 0:04:29]} Rc8 {[%emt 0:04:03]} 14. Nb5 {[%emt 0:07:10]} Qb7 {[%emt 0:24:18]} 15. Bc3 {[%emt 0:04:26]} Na6 {[%emt 0:00:46]} 16. O-O {[%emt 0:04:43]} Nc7 {[%emt 0:00:44]} 17. Nxc7 {[%emt 0:04:37]} Rxc7 {[%emt 0:00:04]} 18. Bxg7 {[%emt 0:00:37]} Kxg7 {[%emt 0:00:04]} 19. Qc4 {[%emt 0:03:31]} Qb4 {[%emt 0:09:07]} 20. Rc1 {[%emt 0:07:35]} Qxc4 {[%emt 0:01:18]} 21. Rxc4 {[%emt 0:00:07]} Nb6 {[%emt 0:00:16]} 22. Rc1 {[%emt 0:04:48]} Rxa4 {[%emt 0:00:10]} 23. Rxa4 {[%emt 0:00:47]} Nxa4 {[%emt 0:00:04]} 24. b4 {[%emt 0:02:29]} Rb7 {[%emt 0:01:58]} 25. bxc5 {[%emt 0:01:17]} Nxc5 {[%emt 0:00:06]} 26. Nd2 {[%emt 0:03:31]} Rb2 {[%emt 0:09:06]} 27. Rd1 {[%emt 0:02:01]} f5 {[%emt 0:07:06]} 28. exf5 {[%emt 0:04:07]} gxf5 {[%emt 0:00:14]} 29. Nc4 {[%emt 0:01:44]} Rb4 {[%emt 0:00:52]} 30. Ne3 {[%emt 0:01:05]} Kf6 {[%emt 0:00:04]} 31. f3 {[%emt 0:02:05]} h5 {[%emt 0:01:10]} 32. g3 {[%emt 0:03:41]} Rb3 {[%emt 0:00:11]} 33. Kf2 {[%emt 0:01:21]} Rb2+ {[%emt 0:12:44]} 34. Kg1 {[%emt 0:00:24]} Nd7 {[%emt 0:00:12]} 35. Rd4 {[%emt 0:01:58]} Re2 {[%emt 0:00:49]} 36. Ng2 {[%emt 0:00:51]} Ne5 {[%emt 0:02:16]} 37. Nh4 {[%emt 0:00:52]} Ng6 {[%emt 0:00:21]} 38. Nxg6 {[%emt 0:04:17]} Kxg6 {[%emt 0:00:11]} 39. g4 {[%emt 0:01:50]} fxg4 {[%emt 0:08:31]} 40. fxg4 {[%emt 0:00:09]} h4 {[%emt 0:02:10]} 41. h3 {[%emt 0:06:51]} Kg5 {[%emt 0:00:16]} 42. Kh1 {[%emt 0:03:20]} Kf6 {[%emt 0:02:56]} 43. Rf4+ {[%emt 0:02:31]} Ke5 {[%emt 0:00:18]} 44. Rf5+ {[%emt 0:01:20]} Ke4 {[%emt 0:00:05]} 45. Kg1 {[%emt 0:02:55]} Rd2 {[%emt 0:10:29]} 46. Rf7 {[%emt 0:03:36]} Rxd5 {[%emt 0:00:05]} 47. Rxe7+ {[%emt 0:00:15]} Kf3 {[%emt 0:01:24]} 48. Kf1 {[%emt 0:02:26]} Rd1+ {[%emt 0:00:49]} 49. Re1 {[%emt 0:00:08]} Rd2 {[%emt 0:00:39]} 50. Re6 {[%emt 0:02:53]} d5 {[%emt 0:00:16]} 51. Rf6+ {[%emt 0:04:46]} Ke4 {[%emt 0:00:05]} 52. Rh6 {[%emt 0:03:00]} d4 {[%emt 0:12:11]} 53. Rxh4 {[%emt 0:00:43]} Kf3 {[%emt 0:04:10]} 54. Ke1 {[%emt 0:00:32]} Re2+ {[%emt 0:00:27]} 55. Kd1 {[%emt 0:01:14]} Rh2 {[%emt 0:00:15]} 56. Rh8 {[%emt 0:02:17]} Ke3 {[%emt 0:00:12]} 57. Rd8 {[%emt 0:01:59]} Rxh3 {[%emt 0:00:58]} 58. g5 {[%emt 0:00:47]} Rh1+ {[%emt 0:00:39]} 59. Kc2 {[%emt 0:00:01]} Rh2+ {[%emt 0:00:11]} 60. Kd1 {[%emt 0:00:12]} Kd3 {[%emt 0:01:46]} 61. Ke1 {[%emt 0:01:54]} Re2+ {[%emt 0:00:20]} 62. Kf1 {[%emt 0:00:33]} Re5 {[%emt 0:02:41]} 63. g6 {[%emt 0:00:35]} Rg5 {[%emt 0:00:05]} 64. Rg8 {[%emt 0:00:26]} Kd2 {[%emt 0:01:52]} 65. g7 {[%emt 0:00:16]} d3 {[%emt 0:00:23]} 66. Kf2 {[%emt 0:00:17]} Rf5+ {[%emt 0:01:16]} 67. Kg3 {[%emt 0:00:21]} Rf7 {[%emt 0:00:28]} 68. Kh4 {[%emt 0:00:40]} Rc7 {[%emt 0:00:52]} 69. Kh5 {[%emt 0:00:46]} Kc2 {[%emt 0:01:14]} 70. Kh6 {[%emt 0:00:24]} d2 {[%emt 0:00:12]} 71. Rd8 {[%emt 0:00:17]} Rxg7 {[%emt 0:00:04]} 72. Kxg7 {[%emt 0:00:10]} d1=Q {[%emt 0:00:06]} 73. Rxd1 {[%emt 0:00:06]} Kxd1 {[%emt 0:00:03]} 1/2-1/2

[Event "USA Junior-ch 2022"]
[Site "Saint Louis"]
[Date "2022.07.08"]
[Round "2.3"]
[White "Brodsky, David"]
[Black "Yip, Carissa"]
[Result "1/2-1/2"]
[ECO "C55"]
[WhiteElo "2496"]
[BlackElo "2416"]
[Annotator "TA"]
[PlyCount "80"]
[EventDate "2022.07.07"]
[EventType "tourn"]
[EventCountry "USA"]
[SourceTitle "playchess.com"]
[Source "ChessBase"]
[SourceQuality "1"]
[TimeControl "40/5400+30:1800+30"]

{[%evp 15,80,35,31,26,37,10,15,0,110,85,154,153,156,154,149,41,42,36,33,-13,-3,-109,-187,-161,-16,-13,-15,-15,-15,-8,-8,-13,0,-4,0,-6,78,0,0,0,0,0,0,0,0,0,0,0,0,0,0,0,0,0,0,0,0,0,0,0,0,0,0,0,0,0,0]} 1. e4 {[%emt 0:00:02]} e5 {[%emt 0:00:07]} 2. Nf3 {[%emt 0:00:03]} Nc6 {[%emt 0:00:04]} 3. Bc4 {[%emt 0:00:03]} Nf6 {[%emt 0:00:12]} 4. d3 {[%emt 0:00:04]} h6 {[%emt 0:00:43]} 5. O-O {[%emt 0:00:09]} d6 {[%emt 0:00:14]} 6. a4 {[%emt 0:00:04]} g6 {[%emt 0:03:28]} 7. Nc3 {[%emt 0:00:38]} Bg7 {[%emt 0:00:50]} 8. h3 {[%emt 0:00:05]} O-O {[%emt 0:00:37]} 9. Be3 {[%emt 0:00:04] 9.Re1 is more fashionable. C55: Two Knights: 4 d3, 4 d4 exd4 5 e5 and Max Lange Attack.} Nh5 {[%emt 0:10:14]} 10. Qd2 {[%emt 0:02:30]} Kh7 {[%emt 0:02:04]} 11. g4 {[%emt 0:00:07] [#]} f5 $146 {[%emt 0:28:25]} ({Predecessor:} 11... Nf4 12. Bxf4 exf4 13. Qxf4 f5 14. exf5 gxf5 15. Qg3 fxg4 16. hxg4 Bxc3 17. bxc3 d5 {0-1 (69) Cuhendi,S (2398)-Babikov,I (2267) Pardubice 2017}) 12. gxh5 $16 {[%emt 0:12:22] 0x0.001b6d8d38aedp-1022s more active pieces.} f4 {[%emt 0:00:04]} (12... gxh5 $142 13. exf5 Bxf5) 13. hxg6+ {[%emt 0:00:05]} Kxg6 {[%emt 0:04:55] [#]} 14. Kh2 {[%emt 0:03:06]} Kh7 {[%emt 0:00:09] [#]} (14... Qd7 15. Ng1) 15. Qe2 {[%emt 0:08:18]} (15. Rg1 Qd7 16. Rg4 fxe3 17. Qxe3 Nd4 $15) (15. Qd1 $1 $16) 15... Qd7 $1 $14 {[%emt 0:13:39] [#]} 16. Ng1 {[%emt 0:01:12][%cal Oe2h5] Hoping for Qh5!} f3 $1 {[%emt 0:04:45]} (16... fxe3 $2 17. fxe3 Rxf1 18. Rxf1 $18) 17. Qd1 {[%emt 0:01:06]} (17. Qd2 $1 $14 {might be stronger.}) 17... Nd4 $1 $11 {[%emt 0:00:17]} 18. Kh1 {[%emt 0:12:41] [#]} (18. Rb1 $11 {remains equal.}) 18... Qe8 $1 $17 {[%emt 0:00:50]} 19. Bxd4 {[%emt 0:02:59]} Qh5 {[%emt 0:05:07]} (19... exd4 $19 20. Nce2 (20. Nxf3 dxc3 21. bxc3 Bxh3 $17) 20... fxe2 21. Qxe2 Rf4) 20. Kh2 $1 $11 {[%emt 0:01:28] Threatens to win with Be3.} exd4 {[%emt 0:17:45]} 21. Nce2 $1 {[%emt 0:00:17]} fxe2 {[%emt 0:04:17]} (21... Qg5 $2 22. Ng3 Qh4 23. Qd2 $16 (23. Nxf3 $2 Qxh3+ 24. Kg1 Bg4 $19)) 22. Qxe2 {[%emt 0:00:07]} Be5+ $1 {[%emt 0:01:31]} 23. f4 $1 {[%emt 0:00:49]} Bxf4+ {[%emt 0:00:41]} 24. Kh1 $1 $132 {[%emt 0:00:26][%mdl 2048] White is fighting back} ({Wrong is} 24. Rxf4 $2 Qe5 25. Qg2 Qxf4+ 26. Kh1 c5 $19) 24... Qh4 {[%emt 0:00:20]} 25. Qf2 {[%emt 0:03:58]} Qh5 {[%emt 0:00:23] [#]} (25... Qg5 $1 $11 {keeps the balance.}) 26. Qf3 {[%emt 0:00:26]} (26. Qg2 $1 $16 {[%cal Of1f4] aiming for Rxf4!} Bd7 27. Rf3) 26... Qh4 {[%emt 0:00:05] The position is equal.} 27. Qg2 {[%emt 0:13:04]} Bd7 {[%emt 0:00:04]} 28. Rf3 {[%emt 0:00:15]} Rf6 {[%emt 0:00:56]} 29. Raf1 {[%emt 0:02:03]} Raf8 {[%emt 0:00:03]} (29... Bxa4 30. Ne2 Be5 31. Rxf6 Bxf6 32. Rf4 $18 (32. b3 Bd7 $11)) 30. Ne2 {[%emt 0:04:34]} Rg6 {[%emt 0:01:31]} 31. Nxf4 {[%emt 0:08:46]} Rxg2 {[%emt 0:00:27]} 32. Nxg2 {[%emt 0:00:07]} Rxf3 {[%emt 0:01:01]} 33. Rxf3 {[%emt 0:00:05]} Qh5 {[%emt 0:00:23]} 34. Rf7+ {[%emt 0:05:44]} Kh8 {[%emt 0:00:03]} 35. Nf4 {[%emt 0:02:27]} Qd1+ {[%emt 0:00:14]} 36. Kh2 {[%emt 0:00:29]} Qd2+ {[%emt 0:00:09]} (36... Qxc2+ $2 37. Kg3 b5 38. Bd5 $18) 37. Kg3 {[%emt 0:06:21] Intending Ng6+ and mate.} Qe1+ {[%emt 0:00:06]} 38. Kh2 {[%emt 0:00:04] Really sharp!} Qd2+ {[%emt 0:00:03]} 39. Kg3 {[%emt 0:00:09] White wants to mate with Ng6+.} Qe1+ {[%emt 0:00:04]} 40. Kh2 {[%emt 0:00:03]} Qd2+ {[%emt 0:00:04] Weighted Error Value: White=0.17 (very precise) /Black=0.17 (very precise)} 1/2-1/2

[Event "USA Junior-ch 2022"]
[Site "Saint Louis"]
[Date "2022.07.08"]
[Round "2.4"]
[White "Jacobson, Brandon"]
[Black "Mishra, Abhimanyu"]
[Result "1/2-1/2"]
[ECO "D30"]
[WhiteElo "2544"]
[BlackElo "2553"]
[Annotator "TA"]
[PlyCount "87"]
[EventDate "2022.07.07"]
[EventType "tourn"]
[EventCountry "USA"]
[SourceTitle "playchess.com"]
[Source "ChessBase"]
[SourceQuality "1"]
[TimeControl "40/5400+30:1800+30"]

{[%evp 13,87,8,27,0,6,19,8,16,12,29,28,35,24,26,70,38,73,43,46,38,38,41,43,43,31,7,10,20,11,10,13,9,22,0,22,0,0,0,0,-43,-21,-25,-14,-12,-15,0,0,-21,0,0,11,10,8,10,10,0,0,0,0,0,0,0,0,0,0,0,0,0,0,0,0,0,0,0,0,0]} 1. d4 {[%emt 0:00:04]} d5 {[%emt 0:00:05]} 2. c4 {[%emt 0:00:06]} c6 {[%emt 0:00:06]} 3. Nf3 {[%emt 0:00:08]} Nf6 {[%emt 0:00:09]} 4. e3 {[%emt 0:00:21]} e6 {[%emt 0:00:19]} 5. Bd3 {[%emt 0:00:57]} dxc4 {[%emt 0:01:59]} 6. Bxc4 {[%emt 0:00:07]} Nbd7 {[%emt 0:00:47]} 7. O-O {[%emt 0:00:48]} Bd6 {[%emt 0:00:24] 7...Bd6 is better than 7...b5.} 8. Re1 {[%emt 0:02:00] D30: Queen's Gambit Declined: Systems without Nc3.} O-O {[%emt 0:05:38]} 9. e4 {[%emt 0:00:19] [#] Hoping for e5.} e5 {[%emt 0:02:40]} 10. h3 {[%emt 0:00:19]} h6 {[%emt 0:10:50]} 11. Nc3 {[%emt 0:01:18] [#]} b5 $146 {[%emt 0:04:08]} ({Predecessor:} 11... exd4 12. Nxd4 Ne5 13. Be2 Ng6 14. Be3 Bb4 15. f3 Qe7 16. Bf1 Nh5 17. Nde2 Be6 18. g4 {1-0 (53) Halbich,A (1922)-Deissenberger,A (1745) Bayern 2018}) 12. Bb3 {[%emt 0:06:29]} Bb7 {[%emt 0:06:36]} 13. Be3 {[%emt 0:16:56]} a6 {[%emt 0:08:41]} 14. Nh4 {[%emt 0:09:31]} c5 {[%emt 0:11:44]} 15. Nf5 {[%emt 0:20:48] White is more active.} cxd4 {[%emt 0:03:53]} 16. Nxd6 {[%emt 0:00:09] [#] Black must now prevent Bxd4.} (16. Bxh6 {keeps more tension.} gxh6 17. Nxd6 dxc3 18. Nxb7 Qb6 19. Nd6) 16... dxe3 {[%emt 0:08:36]} 17. Rxe3 {[%emt 0:00:03]} ({But not} 17. Nxb7 exf2+ 18. Kxf2 Qb6+ 19. Kf1 Qxb7 $17) 17... Nc5 {[%emt 0:00:51]} 18. Nxb7 {[%emt 0:00:10]} Nxb7 {[%emt 0:01:57]} 19. Qxd8 {[%emt 0:05:43]} Rfxd8 {[%emt 0:03:18]} 20. Nd5 {[%emt 0:00:32]} Nc5 {[%emt 0:09:04]} 21. Nxf6+ {[%emt 0:00:06]} gxf6 {[%emt 0:00:06]} 22. Bd5 {[%emt 0:00:03]} Rac8 {[%emt 0:01:15][%cal Of6f5]} 23. Ra3 {[%emt 0:15:59]} Kg7 {[%emt 0:05:55][%cal Of6f5]} 24. Rg3+ {[%emt 0:11:53]} Kf8 {[%emt 0:01:19][%cal Of6f5]} 25. Rf3 {[%emt 0:00:10]} Ke7 {[%emt 0:01:36]} 26. Rg3 {[%emt 0:04:18]} f5 {[%emt 0:03:32]} 27. Re1 {[%emt 0:01:00]} (27. Rg7 {looks sharper.} fxe4 28. Bxf7 Kf6 29. Rh7) 27... fxe4 {[%emt 0:01:32]} 28. Bxe4 {[%emt 0:00:08] The position is equal.} Nxe4 {[%emt 0:00:30]} 29. Rxe4 $11 {[%emt 0:00:02][%mdl 4096] Endgame KRR-KRR} Rc5 {[%emt 0:01:21]} 30. b4 {[%emt 0:00:43]} Rcd5 {[%emt 0:01:16]} (30... Rd4 $5 {[%cal Rc5c1]} 31. Rge3 (31. bxc5 Rxe4 32. Ra3 Ra4 $15) 31... Rxe4 32. Rxe4 Rc1+ 33. Kh2 f6 $11) 31. Rge3 {[%emt 0:00:51]} Kf6 {[%emt 0:02:23]} 32. Rh4 {[%emt 0:02:33]} Kg6 {[%emt 0:02:36]} 33. Rg4+ {[%emt 0:01:28]} Kh7 $1 {[%emt 0:00:50]} 34. f4 {[%emt 0:00:52]} f5 {[%emt 0:00:59]} 35. Rgg3 {[%emt 0:00:30]} e4 {[%emt 0:00:25]} 36. Rc3 {[%emt 0:00:01]} R8d7 {[%emt 0:00:37]} 37. Rc6 {[%emt 0:00:52]} R5d6 {[%emt 0:00:28] Against Rg6} 38. Rgc3 {[%emt 0:00:39]} Kg6 {[%emt 0:00:31]} 39. g4 {[%emt 0:00:25]} h5 {[%emt 0:00:27]} 40. g5 {[%emt 0:00:35]} h4 {[%emt 0:00:22]} 41. Kf2 {[%emt 0:02:40]} Kg7 {[%emt 0:04:50]} 42. Rxd6 {[%emt 0:01:23]} Rxd6 {[%emt 0:00:14]} 43. Ke2 {[%emt 0:00:13]} Kg6 {[%emt 0:01:35]} 44. a3 {[%emt 0:00:24] Weighted Error Value: White=0.07 (flawless) /Black=0.05 (flawless)} 1/2-1/2

[Event "USA Junior-ch 2022"]
[Site "Saint Louis"]
[Date "2022.07.08"]
[Round "2.5"]
[White "Liang, Awonder"]
[Black "Yoo, Christopher Woojin"]
[Result "1/2-1/2"]
[ECO "A17"]
[WhiteElo "2625"]
[BlackElo "2550"]
[Annotator "TA"]
[PlyCount "84"]
[EventDate "2022.07.07"]
[EventType "tourn"]
[EventCountry "USA"]
[SourceTitle "playchess.com"]
[Source "ChessBase"]
[SourceQuality "1"]
[TimeControl "40/5400+30:1800+30"]

{[%evp 9,84,9,6,7,11,0,9,21,31,46,60,6,19,-6,23,27,27,29,29,17,23,20,23,26,57,63,56,57,48,61,73,64,74,64,64,64,64,64,57,52,64,57,56,57,64,64,64,64,64,64,64,0,0,0,0,0,0,0,0,0,0,0,0,0,0,0,0,0,0,0,0,0,0,0,0,0,0]} 1. c4 {[%emt 0:00:02]} c5 {[%emt 0:01:30]} 2. Nc3 {[%emt 0:00:14]} Nf6 {[%emt 0:00:41]} 3. Nf3 {[%emt 0:00:12]} d5 {[%emt 0:00:09]} 4. cxd5 {[%emt 0:00:34]} Nxd5 {[%emt 0:00:07]} 5. e3 {[%emt 0:01:16]} e6 {[%emt 0:03:24]} 6. Nxd5 {[%emt 0:00:32] A17: English Opening: 1...Nf6 with ...Bb4.} exd5 {[%emt 0:02:48]} 7. b4 {[%emt 0:00:02] [#]} Qf6 $146 {[%emt 0:10:29]} ({Predecessor:} 7... c4 8. Bb2 f6 9. a3 Nc6 10. b5 Na5 11. d3 Be6 12. Nd4 Bf7 13. Qa4 Bc5 {1-0 (35) Bok,B (2624)-Ivanchuk,V (2678) Chess.com INT 2021}) 8. Rb1 {[%emt 0:03:16]} Qg6 {[%emt 0:02:10]} 9. Bb2 {[%emt 0:01:13]} c4 {[%emt 0:01:19]} 10. h4 {[%emt 0:11:04]} (10. Bc3 $14) 10... h5 $11 {[%emt 0:04:03]} 11. Ne5 {[%emt 0:02:08]} Qe6 {[%emt 0:03:22]} 12. g3 {[%emt 0:05:07] And now Bh3 would win.} Nc6 {[%emt 0:02:55]} 13. Bh3 {[%emt 0:12:26]} Qd6 {[%emt 0:01:28] [#] Hoping for ...Bxh3.} 14. Bxc8 {[%emt 0:00:10]} Rxc8 {[%emt 0:00:04]} 15. Nxc6 {[%emt 0:00:09]} bxc6 {[%emt 0:01:21]} 16. Qc2 {[%emt 0:07:12]} Qg6 {[%emt 0:03:59]} 17. Qxg6 {[%emt 0:01:02]} fxg6 {[%emt 0:00:08]} 18. Bd4 {[%emt 0:03:05]} Rb8 {[%emt 0:02:40]} 19. Ke2 {[%emt 0:01:38]} Rb7 {[%emt 0:12:34]} 20. Rhc1 {[%emt 0:02:12] White is more active.} Bd6 {[%emt 0:01:15]} 21. a3 {[%emt 0:04:31]} O-O {[%emt 0:01:19]} 22. d3 {[%emt 0:05:18]} cxd3+ {[%emt 0:01:45]} 23. Kxd3 {[%emt 0:00:02]} Rxf2 {[%emt 0:00:54]} 24. Rxc6 {[%emt 0:00:02]} Bxg3 {[%emt 0:00:23]} 25. Rxg6 {[%emt 0:02:41]} Bxh4 {[%emt 0:00:05]} 26. Rh1 {[%emt 0:06:38]} Bf6 {[%emt 0:04:17]} ({Not} 26... Kh7 27. Ra6 g5 28. Bxa7 $16) 27. Bxf6 {[%emt 0:00:08]} ({Reject} 27. Rxh5 Bxd4 28. Kxd4 Ra2 $11) 27... Rxf6 {[%emt 0:00:03]} 28. Rxf6 {[%emt 0:00:05]} gxf6 {[%emt 0:00:04]} 29. Rxh5 $14 {[%emt 0:00:14][%mdl 4096] [#] Endgame Black must now prevent Kd4. KR-KR} a5 $1 {[%emt 0:00:15]} 30. Kc3 {[%emt 0:11:30]} (30. Rxd5 $14 axb4 31. a4) 30... axb4+ $11 {[%emt 0:01:16] The position is equal.} 31. axb4 {[%emt 0:00:01]} Rc7+ {[%emt 0:05:44]} 32. Kb3 {[%emt 0:00:09]} Re7 {[%emt 0:00:14]} 33. b5 {[%emt 0:05:55]} Rxe3+ {[%emt 0:02:05]} 34. Kb4 {[%emt 0:00:25] Threatens to win with b6.} Re1 {[%emt 0:07:35]} 35. b6 {[%emt 0:07:29]} Rb1+ {[%emt 0:00:30]} 36. Kc5 {[%emt 0:03:32]} Kf7 {[%emt 0:00:56]} 37. Rxd5 {[%emt 0:01:11] Kc6 is the strong threat.} Ke6 {[%emt 0:00:10] ( -> ...Rc1+)} 38. Rd4 {[%emt 0:00:06]} f5 {[%emt 0:01:16]} 39. Kc6 {[%emt 0:00:07]} Rc1+ {[%emt 0:00:37]} 40. Kb7 {[%emt 0:00:25]} Rb1 {[%emt 0:00:33]} 41. Ra4 {[%emt 0:30:31]} Ke5 {[%emt 0:30:20]} 42. Kc6 {[%emt 0:00:39]} f4 {[%emt 0:00:19] Weighted Error Value: White=0.07 (flawless) /Black=0.04 (flawless)} 1/2-1/2